Cogmind - Beta 17.1 @@@ ROGUE MODE // 2026.08.23 @ 23:04:16 Player: Alicianrone Result: Destroyed by 8R-AWN with 8R-AWN's Boregun Performance ------------- Evolutions (0) 0 Regions Visited (3) 600 Robots Destroyed (32) 160 Value Destroyed (663) 663 Prototype IDs (25) 500 Alien Tech Used (0) 0 Bonus (335) 335 TOTAL SCORE: 2258 Bonus ------- Follower Combat Kills 35 Aligned with FarCom 300 Cogmind --------- Core Integrity 0/250 Matter 109/300 Energy 150/150 System Corruption 0% Temperature Cool (0) Movement Treading (320) Ox2 Location -10/Exiles Parts ------- > --- POWER (1) -------- Light Angular Momentum Engine > --- PROPULSION (2) --- Light Treads > --- UTILITY (2) ------ High-capacity Storage Unit > --- WEAPON (2) ------- Rocket Launcher > --- INVENTORY (20) --- Wheel Compact Wheel Compact Wheel Medium Matter Pod (100) High-capacity Matter Pod (0) Seismic Detector Seismic Detector Hacking Suite Trap Reconfigurator Mining Laser Peak State ------------ > --- POWER ------------ Light Nuclear Core > --- PROPULSION ------- Light Treads Light Treads > --- UTILITY ---------- High-capacity Storage Unit > --- WEAPON ----------- Bore Cannon Rocket Launcher > --- INVENTORY -------- Light Deuterium Engine Light Angular Momentum Engine Fission Core Light Treads Wheel Compact Wheel Compact Wheel Medium Matter Pod High-capacity Matter Pod Seismic Detector Seismic Detector Hacking Suite Trap Reconfigurator EM Pulse Gun Light Cannon Light Cannon Mining Laser Signal Generator [Rating: 17] Favorites ----------- Power Light Nuclear Core Engine Ion Engine Power Core Light Nuclear Core Propulsion Compact Wheel Treads Light Treads Wheel Compact Wheel Utility High-capacity Storage Unit Device Seismic Detector Storage High-capacity Storage Unit Protection Backup Plating I Weapon Light Cannon Energy Gun EM Pulse Gun Ballistic Gun Light Assault Rifle Ballistic Cannon Light Cannon Launcher Rocket Launcher Special Weapon Mining Laser Build | -11 -10 -10 -10 ------- Run | Yrd Mat Min Exi Slots Evolved . | . . . . Power . | . . . . Propulsion . | . . . . Utility . | . . . . Weapon . | . . . . Parts Attached 32 | 7 15 4 6 Power 6 | 1 1 1 3 Engine 4 | 1 1 . 2 Core 2 | . . 1 1 Reactor . | . . . . Propulsion 7 | 2 3 2 . Treads 3 | . 2 1 . Leg . | . . . . Wheel 4 | 2 1 1 . Hover . | . . . . Flight . | . . . . Utility 7 | 2 5 . . Device 2 | 1 1 . . Storage 4 | 1 3 . . Processor . | . . . . Hackware . | . . . . Protection 1 | . 1 . . Artifact . | . . . . Weapon 12 | 2 6 1 3 Energy Gun 5 | 1 3 . 1 Energy Cannon . | . . . . Ballistic Gun 1 | 1 . . . Ballistic Cannon 4 | . 2 1 1 Launcher 1 | . . . 1 Special Weapon 1 | . 1 . . Impact Weapon . | . . . . Slashing Weapon . | . . . . Piercing Weapon . | . . . . Special Melee Weapon . | . . . . Unidentified Prototypes . | . . . . Parts Lost 14 | . 2 3 9 Power 5 | . 1 1 3 Propulsion 2 | . . . 2 Utility 2 | . 1 1 . Weapon 5 | . . 1 4 Highest Loss Streak 9 | . 1 3 9 To Critical Strikes 8 | . . . 8 Average Backups 10 | 2 7 9 16 Power 1 | . 1 . 4 Propulsion 3 | 1 2 4 3 Utility 1 | . 1 2 4 Weapon 3 | . 2 3 3 Tool/Special . | . . . . Unused Backups 10 | . 1 . 9 Power 3 | . . . 3 Propulsion 2 | . 1 . 1 Utility 5 | . . . 5 Weapon . | . . . . Tool/Special . | . . . . Average Slot Usage (%) 96 | . 97 99 87 Engine 6 | . 13 1 1 Core 6 | . . 12 12 Treads 9 | . 1 14 16 Wheel 18 | . 26 13 10 Device 8 | . 7 13 4 Storage 14 | . 14 14 14 Protection 2 | . 4 . . Energy Gun 6 | . 12 1 . Ballistic Cannon 20 | . 12 26 26 Peak Build Rating 17 | 7 8 12 17 Average Rating 9 | 4 7 10 13 On Entrance 6 | . 7 8 12 Avg Prop Armor Cover (%) 11 | . . 11 11 Naked Turns . | . . . . Heaviest Build 57 | 14 51 52 57 Greatest Support 40 | 26 40 26 40 Greatest Overweight (x) 3 | . 1 3 3 Average Overweight (x) 1 | . . 2 2 Largest Inventory Capacity 20 | 8 20 20 20 Average Capacity 18 | 7 18 20 20 Most Carried 20 | 4 12 14 20 Average Carried 10 | 2 7 10 17 Final Capacity 20 | 8 20 20 20 Final Carried 14 | 4 11 14 10 Class Distribution -------------------- 100% | Mutant Dominant Class ---------------- Mutant | -10/Materials Mutant | -10/Mines Mutant | -10/Exiles Resources | -11 -10 -10 -10 ----------- Run | Yrd Mat Min Exi Matter Collected 1170 | 269 510 191 200 Remotely . | . . . . Salvage Created 936 | 58 679 179 20 Parts 57 | 7 45 5 . Haulers Intercepted 2 | . 2 . . Recyclers Shooed 2 | . 1 1 . Parts Field Recycled . | . . . . Retrieved Matter . | . . . . Parts Self-Destructed . | . . . . Prevented . | . . . . Parts Restored . | . . . . Kills | -11 -10 -10 -10 ------- Run | Yrd Mat Min Exi Combat Hostiles Destroyed 21 | . 13 3 5 Guns 6 | . 5 1 . Cannons 10 | . 8 2 . AOE 5 | . . . 5 Classes Destroyed 11 | 1 8 1 1 Worker 1 | . 1 . . Builder 1 | . 1 . . Tunneler 4 | 3 1 . . Hauler 2 | . 2 . . Recycler 3 | . 1 2 . Operator 3 | . 3 . . Watcher 2 | . 2 . . Swarmer 3 | . 2 1 . Grunt 12 | . 11 1 . Demolisher 1 | . . 1 . Assembled 5 | . . . 5 Best Kill Streak 5 | 2 3 1 5 Combat Bots Only 5 | . 2 1 5 Max Kills in Single Turn 3 | 1 2 1 3 Gunslinging . | . . . . Exploded 3 | . . . 3 Melee . | . . . . Uniques/NPCs Destroyed . | . . . . Combat | -11 -10 -10 -10 -------- Run | Yrd Mat Min Exi Hostile Shots Fired 146 | . 56 25 65 Missed 41 | . 14 11 16 Hits 105 | . 42 14 49 Projectile 105 | . 42 14 49 AOE 6 | . . 6 . Critical Strikes 30 | . 1 . 29 Damage Taken 1625 | . 486 305 834 Core 254 | . 85 58 111 Absorbed by Shields . | . . . . Core Remaining (%) 100 | 100 . . . Volleys Fired 138 | 6 78 11 43 Largest 2 | 2 2 2 2 Hottest 100 | 70 100 70 78 Shots Fired 229 | 12 133 22 62 Gun 96 | 12 76 6 2 Cannon 123 | . 54 16 53 Launcher 7 | . . . 7 Special 3 | . 3 . . Kinetic 133 | 6 58 16 53 Thermal 9 | 6 3 . . Explosive 7 | . . . 7 Electromagnetic 80 | . 72 6 2 Robot Hit Streak 10 | 6 10 3 6 Robot Miss Streak 4 | 1 4 3 4 Penetration Max . | . . . . Secondary Targets . | . . . . Shots Hit Robots 122 | 8 66 12 36 Core Hits 61 | 4 34 6 17 Critical Kills . | . . . . Critical Parts Destroyed . | . . . . Critical Strikes 7 | 1 2 . 4 Burn 1 | 1 . . . Destroy 3 | . . . 3 Blast 2 | . 1 . 1 Corrupt 1 | . 1 . . Melee Attacks . | . . . . Impact . | . . . . Slashing . | . . . . Piercing . | . . . . Sneak Attacks . | . . . . Combat Hostiles . | . . . . Follow-up Attacks . | . . . . Damage Inflicted 2307 | 88 1205 191 823 Guns 626 | 88 479 58 1 Cannons 1336 | . 630 133 573 Explosions 345 | . 96 . 249 Melee . | . . . . Ramming . | . . . . Kinetic 1359 | 13 640 133 573 Thermal 103 | 75 28 . . Explosive 317 | . 68 . 249 Electromagnetic 528 | . 469 58 1 Impact . | . . . . Slashing . | . . . . Piercing . | . . . . Highest Corruption . | . . . . Average Corruption . | . . . . Corruption Purged . | . . . . Corruption Blocked . | . . . . Overload Shots . | . . . . Overflow Damage 9 | . 9 . . Projectiles 9 | . 9 . . Explosions . | . . . . Melee . | . . . . Knockbacks 15 | . 9 3 3 Impact . | . . . . Kinetic 15 | . 9 3 3 Secondary . | . . . . Self-Inflicted Damage 62 | . 17 . 45 Shots 2 | . 1 . 1 Rammed . | . . . . Targets Rammed . | . . . . Kicked . | . . . . Crushed . | . . . . Highest Temperature 216 | 70 168 18 216 Average Temperature 47 | 33 40 7 102 Received Heat Transfer 222 | . 216 6 . Siege Activations . | . . . . Martial Activations . | . . . . Shielding Activations . | . . . . Robots Disrupted . | . . . . Combat Hostiles . | . . . . Robots Corrupted . | . . . . Combat Hostiles . | . . . . Parts Fried . | . . . . Impact Corruptions . | . . . . Robots Melted . | . . . . Combat Hostiles . | . . . . Parts Melted 1 | . . 1 . Heat Transferred 346 | 296 50 . . Parts Sabotaged . | . . . . Parts Stolen . | . . . . Parts Stripped . | . . . . Power Chain Reactions 1 | . 1 . . Alert | -11 -10 -10 -10 ------- Run | Yrd Mat Min Exi Maximum Alert Level . | . . . . Low Security (%) 100 | 100 100 100 . Level 1 . | . . . . Level 2 . | . . . . Level 3 . | . . . . Level 4 . | . . . . Level 5 . | . . . . High Security . | . . . . Max Security . | . . . . Peak Influence 103 | 5 103 56 . Initial 17 | . 3 17 . Average 31 | 1 50 8 . Influence Increases 668 | 15 497 156 . Destroy 0b10 Robot/C 340 | . 260 80 . Destroy 0b10 Robot/NC 80 | 15 55 10 . Destroy Leader 98 | . 68 30 . Allied During Kill 6 | . . 6 . Successful Hack 18 | . 18 . . Select Force Hacks 60 | . 60 . . Disable Machine 15 | . 15 . . Destroy Structure 21 | . 21 . . Partial Spotted 15 | . . 15 . Lose Combat Pursuer 15 | . . 15 . Influence Decreases 668 | 10 456 164 38 Entered New Map 69 | . 2 29 38 Time Decay 549 | 10 434 105 . Lost Part 50 | . 20 30 . Squads Dispatched 5 | . 5 . . Investigation 3 | . 3 . . Extermination . | . . . . Reinforcement 2 | . 2 . . Assault . | . . . . Garrison . | . . . . Intercept . | . . . . Searches Triggered . | . . . . Construction Impeded . | . . . . Haulers Reinforced . | . . . . Active Scanning Responses . | . . . . Cargo Convoy Interrupts . | . . . . Stealth | -11 -10 -10 -10 --------- Run | Yrd Mat Min Exi Distress Signals 2 | . 1 1 . Communications Jammed . | . . . . Distress Signals . | . . . . Times Spotted 32 | . 21 6 5 Peak Tracking Total 9 | . 3 3 9 Tactical Retreats 1 | . . 1 . Traps | -11 -10 -10 -10 ------- Run | Yrd Mat Min Exi Traps Triggered 1 | . 1 . . Indirectly . | . . . . Trap Hack Attempts . | . . . . Triggered . | . . . . Disarmed . | . . . . Reprogrammed . | . . . . Reused . | . . . . Traps Extracted . | . . . . Installed . | . . . . Triggered . | . . . . Machines | -11 -10 -10 -10 ---------- Run | Yrd Mat Min Exi Machines Disabled 6 | . 1 . 5 Max in Single Turn 2 | . 1 . 2 Machines Repaired . | . . . . Machines Dismantled . | . . . . Machines Sabotaged . | . . . . Overloaded Fab Kills . | . . . . Hacking | -11 -10 -10 -10 --------- Run | Yrd Mat Min Exi Machines Accessed 11 | . 9 . 2 Terminals 6 | . 6 . . Fabricators . | . . . . Repair Stations 1 | . 1 . . Recycling Units 2 | . 2 . . Scanalyzers . | . . . . Garrison Access . | . . . . Total Hacks 29 | . 27 . 2 Successful 16 | . 14 . 2 Failed 13 | . 13 . . Catastrophic 1 | . 1 . . Database Lockouts . | . . . . Manual 21 | . 20 . 1 Terminals 20 | . 20 . . Fabricators . | . . . . Repair Stations 4 | . 4 . . Recycling Units 3 | . 3 . . Scanalyzers . | . . . . Garrison Access . | . . . . Terminal Hacks 6 | . 4 . 2 Record 1 | . . . 1 Robot Schematic 1 | . 1 . . Prototype ID Bank 1 | . 1 . . Locate Traps 2 | . 2 . . Proto ID Catalog 1 | . . . 1 Fabricator Hacks . | . . . . Repair Station Hacks 1 | . 1 . . Refit 1 | . 1 . . Recycling Unit Hacks 1 | . 1 . . Retrieve Components 1 | . 1 . . Scanalyzer . | . . . . Garrison Access Hacks . | . . . . Unauthorized Hacks 8 | . 8 . . Terminals 6 | . 6 . . Botnet 2 | . 2 . . Operators 1 | . 1 . . Skim 3 | . 3 . . Fabricators . | . . . . Repair Stations . | . . . . Recycling Units 2 | . 2 . . Tunnel 2 | . 2 . . Scanalyzers . | . . . . Garrison Access . | . . . . Data Cores Recovered 1 | . 1 . . Used . | . . . . Hacking Detections 5 | . 5 . . Full Trace Events . | . . . . Feedback Events . | . . . . Feedback Blocked . | . . . . Robot Schematics Acquired 1 | . 1 . . Robots Built . | . . . . Authchips . | . . . . Time . | . . . . Total Robot Build Rating . | . . . . Part Schematics Acquired . | . . . . Parts Built . | . . . . Authchips . | . . . . Time . | . . . . Total Part Build Rating . | . . . . Part Studies Acquired . | . . . . Parts Repaired . | . . . . Time . | . . . . Parts Recycled . | . . . . Recycled Matter . | . . . . Retrieved Matter . | . . . . Retrieved Components 5 | . 5 . . Parts Scanalyzed . | . . . . Part Schematics Acquired . | . . . . Parts Damaged . | . . . . Bothacking | -11 -10 -10 -10 ------------ Run | Yrd Mat Min Exi Used RIF Installer . | . . . . Robots Hacked . | . . . . Non-combat . | . . . . Combat . | . . . . Robot Hacks Applied . | . . . . Relay Couplers Released . | . . . . Fabnet Peak Effective % . | . . . . Robots Rewired . | . . . . Allies Hacked . | . . . . Hacks Repelled . | . . . . Allies | -11 -10 -10 -10 -------- Run | Yrd Mat Min Exi Total Allies 2 | . . 2 . Largest Group 2 | . . 2 2 Highest-Rated Group 54 | . . 54 54 Highest-Rated Ally 31 | . . 31 31 Total Orders . | . . . . Ally Attacks 10 | . . 10 . Total Damage 149 | . . 149 . Kills 1 | . . 1 . Allies Corrupted . | . . . . Allies Melted . | . . . . Intel | -11 -10 -10 -10 ------- Run | Yrd Mat Min Exi Active Infowar (turns) 1680 | 6 633 875 166 Seismic 1680 | 6 633 875 166 Robot Analysis Total . | . . . . Derelict Logs Recovered 1 | . . 1 . Drone Launches . | . . . . Drone Recoveries . | . . . . Exploration | -11 -10 -10 -10 ------------- Run | Yrd Mat Min Exi Turns Passed 2797 | 73 1238 925 561 Spaces Moved 1693 | 50 863 519 261 Core 8 | 8 . . . Treads 7 | . 6 . 1 Legs . | . . . . Wheels 1678 | 42 857 519 260 Hover . | . . . . Flight . | . . . . Fastest Speed 50 | 50 90 105 145 Average Speed 121 | 82 102 144 145 Slowest Speed 240 | 90 240 145 240 Overloaded Moves . | . . . . Propulsion Burnouts . | . . . . Robots Hopped . | . . . . Potential Cave-ins . | . . . . Cave-ins Triggered . | . . . . Time Travels 1 | . . . 1 Exploration Rate (%) 62 | 3 98 90 58 Regions Visited 3 Branch Regions 2 Pre-discovered Areas 4 | . 2 1 1 Known Exits Taken . | . . . . Unknown Exits Taken 3 | 1 1 1 . Scrap Searched 1 | . . 1 . Spaces Dug 3 | . 3 . . Terrain Destroyed 59 | . 19 . 40 Melee . | . . . . Projectile 6 | . 3 . 3 AOE 53 | . 16 . 37 Terrain Rammed . | . . . . Walls Destroyed . | . . . . Machines Disabled . | . . . . Actions | -11 -10 -10 -10 --------- Run | Yrd Mat Min Exi Total 2188 | 67 1071 667 383 Wait 247 | 1 76 119 51 Move 1690 | 49 862 518 261 Hop . | . . . . Pick Up 28 | 4 9 6 9 Fast Attach 10 | 7 3 . . Attach 14 | . 4 3 7 Detach 6 | . 5 . 1 Swap 37 | . 24 9 4 Drop 18 | . 10 1 7 Fire 138 | 6 78 11 43 Melee . | . . . . Ram . | . . . . Kick . | . . . . Crush . | . . . . Escape Stasis . | . . . . Rewire . | . . . . Trap . | . . . . Miscellaneous . | . . . . Route ------- -11/Scrapyard -10/Materials (discovered 5 exits: [*Mat x3] / [*Min] / [*Sub]) -10/Mines (discovered 3 exits: [*Mat x2] / *Exi) -10/Exiles History --------- Turn | Location | Event 3 | -11/Scrapyard | Discovered new exit (range 16) 74 | -11/Scrapyard | Entered Materials 134 | -10/Materials | Discovered new exit (range 16) 295 | -10/Materials | Discovered new exit (range 14) 312 | -10/Materials | Build established: Mutant 727 | -10/Materials | Discovered new exit (range 7) 927 | -10/Materials | Discovered new exit (range 10) 1181 | -10/Materials | Discovered new exit (range 9) 1312 | -10/Materials | Entered Mines 1313 | -10/Mines | Assembled infested the area 1318 | -10/Mines | Assisted by a Guerilla fighting off Assembled 1381 | -10/Mines | Discovered new exit (range 8) 1391 | -10/Mines | Core integrity fell below 50% 1418 | -10/Mines | Lost 3 parts (1p1u1w) 1496 | -10/Mines | Discovered new exit (range 11) 1740 | -10/Mines | Received a Rocket Launcher from a helpful Derelict 1756 | -10/Mines | Met a Derelict testing a Signal Generator 1764 | -10/Mines | Found Signal Generator 1987 | -10/Mines | Deemed a non-threat by the Exiles lab entrance 1988 | -10/Mines | Discovered new exit (range 5) 2184 | -10/Mines | Learned location of Zion (-7) 2237 | -10/Mines | Entered Exiles 2237 | -10/Exiles | Accompanied by 2 allies 2267 | -10/Exiles | Led the pair of lost Derelicts to a safe place 2278 | -10/Exiles | Met 8R-AWN 2301 | -10/Exiles | Met EX-HEX 2342 | -10/Exiles | Met EX-BIN 2359 | -10/Exiles | Aligned with FarCom system 2361 | -10/Exiles | Given EX-Vault access code 2394 | -10/Exiles | Opened EX-Vault 2403 | -10/Exiles | Found Chronowheel 2403 | -10/Exiles | Activated Chronowheel 2403 | -10/Exiles | Spacetime reconverged on an earlier point 2406 | -10/Exiles | Found Trap Reconfigurator 2441 | -10/Exiles | Warned to stay clear of 0b10 Research branches 2484 | -10/Exiles | Met EX-DEC 2609 | -10/Exiles | Attacked by the Exiles 2758 | -10/Exiles | Core integrity fell below 20% 2798 | -10/Exiles | Destroyed by 8R-AWN with 8R-AWN's Boregun Last Messages --------------- 02757_ Penetrated by HV Slug. 02772_ Critical hit (Destroy). 02772_ Fission Core destroyed. 02772_ HV Slug penetrates Earth. 02772_ HV Slug penetrates Machine. 02774_ Dropped Hcp. Matter Pod. 02774_ 8R-AWN knocked back. 02775_ Extracted 113 matter. 02778_ Penetrated by HV Slug. 02778_ Critical hit (Destroy). 02778_ EM Pulse Gun destroyed. 02783_ Penetrated by HV Slug. 02788_ Critical hit (Destroy). 02788_ Lgt. Cannon destroyed. 02788_ Penetrated by HV Slug. 02793_ HV Slug penetrates Wall. 02793_ Dropped Signal Generator. 02794_ Acquired Hcp. Matter Pod. 02798_ The unstable cave ceiling collapses. 02798_ Penetrated by HV Slug. Map ----- +----------------------------------------------------+ | ?????????????????????????????????????????????????? | | ?????????????????????????????????????????????????? | | ?????????????????????????????????????????????????? | | ?????????????????????????????????????????????????? | | ?????????????????????????????????????????????????? | | ?????????????????????????????????????????????????? | | ?????????????????????????????????????????????????? | | ?????????????????????????????????????????????????? | | ?????????????????????????????????????????????????? | | ?????????????????????????????????????????????????? | | ?????????????????????????????????????????????????? | | ?????????????? ??????????????#######?????????????? | | ????????????? ######???????#!!! "#?????????????? | | ????????????? #""#??????# "#?????????????? | | ????????????? ??????# "#?????????????? | | ?????????????" ###??## ""#????????????## | | ?????????????" ####" ""#???????????? | | ??????????????# # ""###??????????" | | ???????????????# # # #??????????" | | ??????????????????# ##????????"" | | ????????????????????## # ????????"" | | ????????????????????#### #??????? | | ???????????????######;# #????????" | | ???????????????# ! % g #????????# | | ???????????????#! ###???### | | ??????????????#;! @ "#####X# | | ???????????????#! &# | | ??????????????#; """"" # ##### ; | | ??????????????#############???#### | | ?????????????????????????????????### | | ???????????????????????????????????### | | ?????????????????????????????????????## | | ??????????????????????????????????????## | | ???????????????????????????????????????##" | | ????????????????????????????????????????#""" | | ????????????????????????????????????????#" | | ????????????????????????????????????????"" | | ????????????????????????????????????????""" | | ????????????????????????????????????????"" | | ?????????????????????????????????????????" | | ????????????????????????????????????????" | | ????????????????????????????????????????"" | | ????????????????????????????????????????? | | ?????????????????????????????????????????? | | ???????????????????????????????????????????? | | ?????????????????????????????????????????????? | | ????????????????????????????????????????????????? | | ?????????????????????????????????????????????????? | | ?????????????????????????????????????????????????? | | ?????????????????????????????????????????????????? | +----------------------------------------------------+ Best States ------------- Heat Dissipation 25 Energy Generation 18 Energy Capacity 310 Matter Stores 300 Matter Capacity 300 Sight Range 16 Terrain Scan Density 10 Armor Coverage 80 Evasion (%) 44 Recoil Reduction 2 Item Schematics ----------------- None Robot Schematics ------------------ M-13 Machinist | -10/Materials | Hacked Fabricated ------------ Nothing Repaired ---------- Nothing Studied --------- None Alien Tech Used ----------------- None Achievements -------------- Spacetime Is Relative Challenges ------------ None Game ------ Seed ContainmentThunderVibroblade Manual? 0 Play Time 00:22:22 Cumulative 1029.8 hours Start 2026.08.23 @ 22:44:12 End 2026.08.23 @ 23:04:16 Sessions 1 Manual Loads 0 Difficulty Rogue Special Mode None Game No. 290 Rogue 290 Adventurer 0 Explorer 0 Win Type - Total 46 Types 13/10/11/2/2/0/4/1/1/2 Lore% 96 Gallery% 91 Achievement% 87 Wizard Run 0 Options --------- Layout 1 ASCII 0 Keyboard 0 Movement Mouse Keybinds 0 Fullscreen 2 Font 32/SmallcapsGlow Map View 50x35 Zoom Use 0% Tactical HUD 1 Map Filters NONE Filters NONE Steam 1 RUN: e6abb590-2475-4ccb-a593-8800e9d5c0d2